Cogmind - Beta 11.1 --- EXPLORER MODE // 2022.11.13 @ 22:57:57 Player: Analote Result: Self-destructed Performance ------------- Evolutions (6) 3000 Regions Visited (7) 1400 Robots Destroyed (160) 800 Value Destroyed (5853) 5853 Prototype IDs (7) 140 Alien Tech Used (0) 0 Bonus (184) 184 TOTAL SCORE: 11377 Bonus ------- High Alert Combat Kills 282 Follower Combat Kills 75 Friendly Fire -173 Cogmind --------- Core Integrity 502/1150 Matter 130/300 Energy 333/340 System Corruption 3% Temperature Cool (75) Movement Hovering (600) Ox7 Location -4/Factory Parts ------- > --- POWER (2) -------- Heavy Antimatter Reactor > --- PROPULSION (4) --- Improved Linear Gravjet Improved Linear Gravjet Improved Linear Gravjet > --- UTILITY (9) ------ Improved Trap Scanner Targeting Computer Advanced Hardlight Generator Point Defense System Improved Dynamic Insulation System > --- WEAPON (5) ------- Matter Neutralizer Advanced KE Penetrator Hardcell Cannon Hardcell Cannon > --- INVENTORY (5) ---- Improved Linear Gravjet Improved Linear Gravjet Smartbomb Launcher Peak State ------------ > --- POWER ------------ Reinforced Fission Core Heavy Antimatter Reactor > --- PROPULSION ------- Improved Linear Gravjet Improved Linear Gravjet Improved Linear Gravjet Improved Linear Gravjet > --- UTILITY ---------- Improved Trap Scanner Targeting Computer Transmission Jammer Advanced Hardlight Generator Point Defense System Improved Dynamic Insulation System > --- WEAPON ----------- Improved Arc Projector Matter Neutralizer Advanced KE Penetrator Hardcell Cannon Hardcell Cannon > --- INVENTORY -------- Improved Linear Gravjet Improved Linear Gravjet Smartbomb Launcher [Rating: 108] Favorites ----------- Power Micro Nuclear Core Engine Cooled Ion Engine Power Core Micro Nuclear Core Reactor Heavy Antimatter Reactor Propulsion Improved Carbon-fiber Leg Treads Heavy Treads Leg Improved Carbon-fiber Leg Hover Unit Improved Linear Gravjet Utility Targeting Computer Device Improved Heat Sink Storage High-capacity Battery Processor Targeting Computer Protection Layered Light Armor Plating Weapon Improved EM Shotgun Energy Gun Improved EM Shotgun Energy Cannon Heavy Ion Cannon Ballistic Gun Advanced KE Penetrator Ballistic Cannon Advanced Assault Cannon Launcher Smartbomb Launcher Build | -11 -10 -9 -8 -7 -6 -5 -4 ------- Run | Scr Mat Mat Mat Fac Fac Fac Fac Slots Evolved 13 | . 1 2 2 2 2 2 2 Power 1 | . . . . 1 . . . Propulsion 2 | . 1 . . . . 1 . Utility 7 | . . 1 2 . 2 1 1 Weapon 3 | . . 1 . 1 . . 1 Parts Attached 90 | 7 1 11 10 20 7 11 23 Power 13 | 1 . 4 . 4 1 1 2 Engine 8 | 1 . 4 . 2 1 . . Core 4 | . . . . 2 . 1 1 Reactor 1 | . . . . . . . 1 Propulsion 19 | 2 1 . 4 3 1 2 6 Treads 2 | . . . . . . . 2 Leg 13 | 2 1 . 4 3 1 2 . Wheel . | . . . . . . . . Hover 4 | . . . . . . . 4 Flight . | . . . . . . . . Utility 26 | 2 . 2 2 7 3 5 5 Device 16 | . . 1 . 4 3 3 5 Storage 1 | . . . . . . 1 . Processor 4 | 1 . . 2 . . 1 . Hackware . | . . . . . . . . Protection 5 | 1 . 1 . 3 . . . Artifact . | . . . . . . . . Weapon 32 | 2 . 5 4 6 2 3 10 Energy Gun 16 | 2 . 4 3 5 . 1 1 Energy Cannon 9 | . . 1 1 . 2 2 3 Ballistic Gun 1 | . . . . . . . 1 Ballistic Cannon 5 | . . . . 1 . . 4 Launcher 1 | . . . . . . . 1 Special Weapon . | . . . . . . . . Impact Weapon . | . . . . . . . . Slashing Weapon . | . . . . . . . . Piercing Weapon . | . . . . . . . . Special Melee Weapon . | . . . . . . . . Unidentified Prototypes 7 | . . 3 2 . . . 2 Parts Lost 31 | . . . . 3 1 3 24 Power 5 | . . . . 1 . 1 3 Propulsion 6 | . . . . . . . 6 Utility 12 | . . . . 1 1 2 8 Weapon 8 | . . . . 1 . . 7 Highest Loss Streak 12 | . . . . 2 1 1 12 To Critical Strikes 2 | . . . . 1 . . 1 Average Slot Usage (%) 91 | . 95 96 96 92 98 97 60 Engine 5 | . 12 10 8 5 4 1 . Core 4 | . . . . 6 7 7 5 Leg 20 | . 32 30 24 18 18 21 5 Device 15 | . . 6 8 13 29 27 17 Processor 9 | . 12 10 22 9 6 5 5 Protection 8 | . 12 10 8 11 6 5 . Energy Gun 15 | . 25 25 21 19 6 5 3 Energy Cannon 6 | . . 4 3 2 12 15 7 Ballistic Cannon 2 | . . . . 5 6 . 2 Naked Turns . | . . . . . . . . Heaviest Build 99 | 9 9 23 23 42 56 61 99 Greatest Support 140 | 20 30 30 49 54 56 76 140 Greatest Overweight (x) 10 | 2 . . . 2 1 1 10 Average Overweight (x) . | . . . . . . . . Largest Inventory Capacity 5 | 5 5 5 5 5 5 5 5 Average Capacity 5 | 5 5 5 5 5 5 5 5 Most Carried 5 | 2 1 5 5 5 3 5 5 Average Carried 2 | . . 1 2 3 . 2 1 Final Capacity 5 | 5 5 5 5 5 5 5 5 Final Carried 4 | . 1 3 4 4 1 4 4 Class Distribution -------------------- 43% | Hacker-Gunner 34% | Hacker-Tank 20% | Hacker-Mutant Dominant Class ---------------- Hacker-Mutant | -10/Materials Hacker-Gunner | -9/Materials Hacker-Gunner | -8/Materials Hacker-Tank | -7/Factory Hacker-Gunner | -6/Factory Hacker-Tank | -5/Factory Hacker-Gunner | -4/Factory Resources | -11 -10 -9 -8 -7 -6 -5 -4 ----------- Run | Scr Mat Mat Mat Fac Fac Fac Fac Matter Collected 1853 | 121 159 100 227 650 146 166 284 Remotely . | . . . . . . . . Salvage Created 7012 | . 334 831 1153 1829 269 2226 370 Parts 363 | . 22 66 66 89 15 89 16 Haulers Intercepted 12 | . 2 2 5 1 . 2 . Recyclers Shooed 3 | . 1 . . . 1 1 . Parts Field Recycled . | . . . . . . . . Retrieved Matter . | . . . . . . . . Parts Self-Destructed . | . . . . . . . . Prevented . | . . . . . . . . Kills | -11 -10 -9 -8 -7 -6 -5 -4 ------- Run | Scr Mat Mat Mat Fac Fac Fac Fac Combat Hostiles Destroyed 119 | . 6 17 18 32 6 34 6 Melee 1 | . . . . . . . 1 Guns 60 | . 6 10 14 22 . 7 1 Cannons 50 | . . 7 4 8 6 21 4 AOE 7 | . . . . 2 . 5 . Classes Destroyed 15 | . 4 3 1 5 . 1 1 Worker 3 | . . . . 2 . 1 . Builder 3 | . . 1 . 1 . 1 . Tunneler 1 | . . . . . . 1 . Hauler 12 | . 2 2 5 1 . 2 . Recycler 2 | . . . . 1 . 1 . Operator 1 | . . 1 . . . . . Watcher 18 | . 3 5 1 4 . 5 . Swarmer 34 | . 2 8 3 7 . 14 . Grunt 33 | . 4 4 9 8 . 8 . Brawler 7 | . . . 1 4 . 2 . Duelist 4 | . . . . 3 . 1 . Sentry 28 | . . 5 5 5 4 7 2 Hunter 3 | . . . . 1 . . 2 Programmer 9 | . . . . 4 2 2 1 Behemoth 1 | . . . . . . . 1 Thug 1 | . . . . 1 . . . Best Kill Streak 18 | . 2 4 5 4 2 18 2 Combat Bots Only 14 | . 2 4 4 3 2 14 2 Max Kills in Single Turn 3 | . 1 2 1 3 1 3 1 Gunslinging . | . . . . . . . . Exploded 2 | . . . . 1 . 2 . Melee 1 | . . . . . . . 1 Uniques/NPCs Destroyed . | . . . . . . . . Combat | -11 -10 -9 -8 -7 -6 -5 -4 -------- Run | Scr Mat Mat Mat Fac Fac Fac Fac Damage Taken 6905 | . 187 276 566 1542 137 1068 3129 Core 1663 | . 27 53 147 550 . 238 648 Absorbed by Shields 32 | . . . . . . . 32 Reduced by Siege Mode 28 | . . . . . . . 28 Core Remaining (%) 77 | 100 89 86 73 21 100 76 . Volleys Fired 321 | . 35 47 48 73 10 68 40 Largest 5 | . 2 3 3 4 4 4 5 Hottest 500 | . 90 150 194 250 273 310 500 Shots Fired 938 | . 67 116 133 253 39 223 107 Gun 552 | . 67 90 119 177 9 60 30 Cannon 386 | . . 26 14 76 30 163 77 Launcher . | . . . . . . . . Special . | . . . . . . . . Kinetic 107 | . . . . 56 10 3 38 Thermal 666 | . 67 91 107 110 29 217 45 Explosive . | . . . . . . . . Electromagnetic 165 | . . 25 26 87 . 3 24 Robot Hit Streak 39 | . 17 17 28 39 30 37 20 Robot Miss Streak 4 | . 2 2 3 3 4 3 2 Penetration Max 1 | . . . . . . . 1 Secondary Targets 4 | . 1 . 3 . . . . Max Gunslinging Chain 1 | . 1 . 1 . . . . Shots Hit Robots 703 | . 48 79 105 182 35 161 93 Core Hits 339 | . 20 38 44 98 16 99 24 Critical Kills 1 | . . . . . . 1 . Critical Parts Destroyed 3 | . . . . . . . 3 Critical Strikes 25 | . 5 1 7 6 . 1 5 Burn 16 | . 5 1 7 3 . . . Meltdown 1 | . . . . . . 1 . Destroy 3 | . . . . . . . 3 Blast 4 | . . . . 2 . . 2 Corrupt 1 | . . . . 1 . . . Melee Attacks . | . . . . . . . . Impact . | . . . . . . . . Slashing . | . . . . . . . . Piercing . | . . . . . . . . Sneak Attacks . | . . . . . . . . Combat Hostiles . | . . . . . . . . Follow-up Attacks . | . . . . . . . . Damage Inflicted 16674 | . 610 1225 1953 4095 1022 5139 2630 Guns 8187 | . 610 876 1767 2531 277 1433 693 Cannons 7302 | . . 313 181 1159 745 3015 1889 Explosions 1114 | . . 36 . 405 . 673 . Melee . | . . . . . . . . Ramming 71 | . . . 5 . . 18 48 Kinetic 2323 | . . . . 894 284 76 1069 Thermal 11590 | . 610 866 1551 1990 738 4571 1264 Explosive . | . . . . . . . . Electromagnetic 2690 | . . 359 397 1211 . 474 249 Impact . | . . . . . . . . Slashing . | . . . . . . . . Piercing . | . . . . . . . . Highest Corruption 5 | . . . . 5 . 3 3 Average Corruption 3 | . . . . 4 . 2 2 Corruption Purged . | . . . . . . . . Corruption Blocked . | . . . . . . . . Effects 46 | . . . . 28 . 14 4 Message Errors 14 | . . . . 11 . 3 . Matter Fused 10 | . . . . 6 . 2 2 Heat Flow Errors 6 | . . . . 2 . 3 1 Energy Discharges 5 | . . . . 2 . 3 . Data Loss (minor) 6 | . . . . 3 . 2 1 Data Loss (major) 2 | . . . . 2 . . . Misfires 2 | . . . . 1 . 1 . Alerts 1 | . . . . 1 . . . Overload Shots 18 | . . . . . . 11 7 Overflow Damage 141 | . . 6 4 3 . 126 2 Projectiles 54 | . . . 4 3 . 45 2 Explosions 87 | . . 6 . . . 81 . Melee . | . . . . . . . . Knockbacks 10 | . . . . 5 . . 5 Impact . | . . . . . . . . Kinetic 10 | . . . . 5 . . 5 Secondary . | . . . . . . . . Self-Inflicted Damage 237 | . . 22 . 135 . 58 22 Shots 9 | . . 1 . 5 . 3 . Rammed 13 | . . . . . . . 13 Targets Rammed 16 | . . . 1 . . 2 13 Kicked 3 | . . . 1 . . 2 . Crushed . | . . . . . . . . Highest Temperature 781 | . 324 479 741 780 333 781 649 Average Temperature 191 | . 119 103 213 199 124 233 242 Received Heat Transfer 1524 | . 159 147 369 222 60 216 351 Effects 148 | . 4 9 27 56 . 16 36 Shutdowns 32 | . . 1 6 15 . . 10 Energy Bleed 18 | . 1 . 3 4 . 4 6 Interference 40 | . 3 4 8 14 . 1 10 Matter Decay 11 | . . . 2 3 . 4 2 Short Circuit 7 | . . . 1 5 . . 1 Damage (minor) 14 | . . 1 3 3 . 3 4 Damage (major) 20 | . . 3 3 9 . 3 2 Damage (core) 6 | . . . 1 3 . 1 1 Siege Activations 1 | . . . . . . . 1 Total Turns 8 | . . . . . . . 8 Longest Duration 8 | . . . . . . . 8 Robots Corrupted . | . . . . . . . . Combat Hostiles . | . . . . . . . . Parts Fried 13 | . . 1 3 8 . 1 . Impact Corruptions . | . . . . . . . . Robots Melted 2 | . 1 . . . . 1 . Combat Hostiles 1 | . . . . . . 1 . Parts Melted 33 | . 4 6 4 5 2 12 . Heat Transferred 20903 | . 1981 2092 3626 3642 1196 6869 1497 Parts Sabotaged . | . . . . . . . . Parts Stolen . | . . . . . . . . Parts Stripped . | . . . . . . . . Power Chain Reactions 9 | . . 1 . 7 . 1 . Missiles Intercepted . | . . . . . . . . Alert | -11 -10 -9 -8 -7 -6 -5 -4 ------- Run | Scr Mat Mat Mat Fac Fac Fac Fac Peak Influence 660 | . 166 394 516 354 170 660 175 Initial 159 | . . 21 110 159 88 58 129 Average 221 | . 68 216 343 156 99 477 77 Maximum Alert Level 2 | . . 1 2 1 . 2 . Low Security (%) 57 | 100 100 45 13 66 100 6 100 Level 1 25 | . . 54 54 33 . 20 . Level 2 17 | . . . 31 . . 72 . Level 3 . | . . . . . . . . Level 4 . | . . . . . . . . Level 5 . | . . . . . . . . High Security . | . . . . . . . . Max Security . | . . . . . . . . Squads Dispatched 23 | . . 1 1 8 3 8 2 Investigation 1 | . . . . . . 1 . Extermination 9 | . . . . 4 2 2 1 Reinforcement 8 | . . 1 1 2 1 2 1 Assault 1 | . . . . 1 . . . Garrison 4 | . . . . 1 . 3 . Intercept . | . . . . . . . . Searches Triggered . | . . . . . . . . Construction Impeded . | . . . . . . . . Haulers Reinforced 1 | . . . . . . 1 . Active Scanning Responses . | . . . . . . . . Cargo Convoy Interrupts . | . . . . . . . . Stealth | -11 -10 -9 -8 -7 -6 -5 -4 --------- Run | Scr Mat Mat Mat Fac Fac Fac Fac Distress Signals 6 | . . 1 1 1 . 3 . Communications Jammed . | . . . . . . . . Distress Signals . | . . . . . . . . Times Spotted 176 | . 11 24 25 46 7 46 17 Peak Tracking Total 8 | . 4 3 8 5 2 6 5 Tactical Retreats 5 | . . . 1 1 . . 3 Traps | -11 -10 -9 -8 -7 -6 -5 -4 ------- Run | Scr Mat Mat Mat Fac Fac Fac Fac Traps Triggered 7 | . . . 2 4 . 1 . Indirectly . | . . . . . . . . Trap Hack Attempts . | . . . . . . . . Triggered . | . . . . . . . . Disarmed . | . . . . . . . . Reprogrammed . | . . . . . . . . Reused . | . . . . . . . . Traps Extracted . | . . . . . . . . Installed . | . . . . . . . . Triggered 1 | . . . . . . 1 . Machines | -11 -10 -9 -8 -7 -6 -5 -4 ---------- Run | Scr Mat Mat Mat Fac Fac Fac Fac Machines Disabled 21 | . . . 2 4 . 13 2 Max in Single Turn 4 | . . . 1 2 . 4 1 Garrison Access 1 | . . . . 1 . . . Machines Sabotaged . | . . . . . . . . Garrisons Compromised 1 | . . . . . . 1 . Overloaded Fab Kills . | . . . . . . . . Hacking | -11 -10 -9 -8 -7 -6 -5 -4 --------- Run | Scr Mat Mat Mat Fac Fac Fac Fac Machines Accessed 6 | . . 2 . . 1 2 1 Terminals 6 | . . 2 . . 1 2 1 Fabricators . | . . . . . . . . Repair Stations . | . . . . . . . . Recycling Units . | . . . . . . . . Scanalyzers . | . . . . . . . . Garrison Access . | . . . . . . . . Total Hacks 11 | . . 4 . . 2 4 1 Successful 6 | . . 2 . . 1 2 1 Failed 5 | . . 2 . . 1 2 . Catastrophic . | . . . . . . . . Database Lockouts . | . . . . . . . . Manual . | . . . . . . . . Terminals 11 | . . 4 . . 2 4 1 Fabricators . | . . . . . . . . Repair Stations . | . . . . . . . . Recycling Units . | . . . . . . . . Scanalyzers . | . . . . . . . . Garrison Access . | . . . . . . . . Terminal Hacks 6 | . . 2 . . 1 2 1 Record 1 | . . . . . . 1 . Robot Analysis 4 | . . 1 . . 1 1 1 Alert Level 1 | . . 1 . . . . . Fabricator Hacks . | . . . . . . . . Repair Station Hacks . | . . . . . . . . Recycling Unit Hacks . | . . . . . . . . Scanalyzer . | . . . . . . . . Garrison Access Hacks . | . . . . . . . . Unauthorized Hacks . | . . . . . . . . Terminals . | . . . . . . . . Fabricators . | . . . . . . . . Repair Stations . | . . . . . . . . Recycling Units . | . . . . . . . . Scanalyzers . | . . . . . . . . Garrison Access . | . . . . . . . . Data Cores Recovered 1 | . . 1 . . . . . Used . | . . . . . . . . Hacking Detections 4 | . . 1 . . . 2 1 Full Trace Events 2 | . . 1 . . . 1 . Feedback Events . | . . . . . . . . Feedback Blocked . | . . . . . . . . Robot Schematics Acquired . | . . . . . . . . Robots Built . | . . . . . . . . Authchips . | . . . . . . . . Time . | . . . . . . . . Total Robot Build Rating . | . . . . . . . . Part Schematics Acquired . | . . . . . . . . Parts Built . | . . . . . . . . Authchips . | . . . . . . . . Time . | . . . . . . . . Total Part Build Rating . | . . . . . . . . Parts Repaired . | . . . . . . . . Time . | . . . . . . . . Parts Recycled . | . . . . . . . . Recycled Matter . | . . . . . . . . Retrieved Matter . | . . . . . . . . Retrieved Components . | . . . . . . . . Parts Scanalyzed . | . . . . . . . . Part Schematics Acquired . | . . . . . . . . Parts Damaged . | . . . . . . . . Bothacking | -11 -10 -9 -8 -7 -6 -5 -4 ------------ Run | Scr Mat Mat Mat Fac Fac Fac Fac Used RIF Installer . | . . . . . . . . Robots Hacked . | . . . . . . . . Non-combat . | . . . . . . . . Combat . | . . . . . . . . Robot Hacks Applied . | . . . . . . . . Relay Couplers Released 1 | . . . . 1 . . . Machine Destruction 1 | . . . . 1 . . . Fabnet Peak Effective % . | . . . . . . . . Robots Rewired . | . . . . . . . . Allies Hacked . | . . . . . . . . Hacks Repelled . | . . . . . . . . Allies | -11 -10 -9 -8 -7 -6 -5 -4 -------- Run | Scr Mat Mat Mat Fac Fac Fac Fac Total Allies 3 | . . . . 3 . . . Largest Group 3 | . . . . 3 . . . Highest-Rated Group 93 | . . . . 93 . . . Highest-Rated Ally 31 | . . . . 31 . . . Total Orders . | . . . . . . . . Ally Attacks 12 | . . . . 12 . . . Total Damage 166 | . . . . 166 . . . Kills 3 | . . . . 3 . . . Allies Corrupted . | . . . . . . . . Allies Melted . | . . . . . . . . Intel | -11 -10 -9 -8 -7 -6 -5 -4 ------- Run | Scr Mat Mat Mat Fac Fac Fac Fac Robot Analysis Total 4 | . . 1 . . 1 1 1 Derelict Logs Recovered . | . . . . . . . . Drone Launches . | . . . . . . . . Drone Recoveries . | . . . . . . . . Exploration | -11 -10 -9 -8 -7 -6 -5 -4 ------------- Run | Scr Mat Mat Mat Fac Fac Fac Fac Turns Passed 6667 | 61 687 691 680 1955 586 1311 696 Spaces Moved 3946 | 46 477 430 398 1122 375 813 285 Core 44 | 23 . . . . . . 21 Treads 122 | . . . . . . . 122 Legs 3724 | 23 477 430 398 1122 375 813 86 Wheels . | . . . . . . . . Hover 56 | . . . . . . . 56 Flight . | . . . . . . . . Fastest Speed 50 | 50 120 120 113 123 120 115 50 Average Speed 132 | 104 120 120 119 144 139 123 166 Slowest Speed 550 | 150 120 120 130 270 193 190 550 Overloaded Moves . | . . . . . . . . Propulsion Burnouts . | . . . . . . . . Robots Hopped . | . . . . . . . . Cave-ins Triggered . | . . . . . . . . Exploration Rate (%) 32 | 3 72 52 44 31 12 37 6 Regions Visited 7 Branch Regions . Pre-discovered Areas . | . . . . . . . . Known Exits Taken 7 | 1 1 1 1 1 1 1 . Unknown Exits Taken . | . . . . . . . . Scrap Searched . | . . . . . . . . Spaces Dug . | . . . . . . . . Terrain Destroyed 82 | . . 2 . 35 2 32 11 Melee . | . . . . . . . . Projectile 47 | . . . . 12 2 22 11 AOE 35 | . . 2 . 23 . 10 . Terrain Rammed . | . . . . . . . . Walls Destroyed . | . . . . . . . . Machines Disabled . | . . . . . . . . Actions | -11 -10 -9 -8 -7 -6 -5 -4 --------- Run | Scr Mat Mat Mat Fac Fac Fac Fac Total 4688 | 59 524 511 499 1284 412 970 429 Wait 200 | . 10 10 28 38 13 57 44 Move 3939 | 45 476 429 397 1121 374 812 285 Hop . | . . . . . . . . Pick Up 86 | 7 2 9 9 20 4 14 21 Fast Attach . | . . . . . . . . Attach 61 | 7 1 4 2 16 3 6 22 Detach 1 | . . . . . . . 1 Swap 29 | . . 7 8 4 4 5 1 Drop 35 | . . 5 6 12 4 6 2 Fire 321 | . 35 47 48 73 10 68 40 Melee . | . . . . . . . . Ram 13 | . . . . . . . 13 Kick 3 | . . . 1 . . 2 . Crush . | . . . . . . . . Escape Stasis . | . . . . . . . . Rewire . | . . . . . . . . Trap . | . . . . . . . . Miscellaneous . | . . . . . . . . Route ------- -11/Scrapyard -10/Materials (discovered 3 exits: *Mat / *Min x2) -9/Materials (discovered 3 exits: *Mat x2 / *Min) -8/Materials (discovered 2 exits: *Fac x2) -7/Factory -6/Factory -5/Factory (discovered 3 exits: *Fac x2 / *Upp) -4/Factory (discovered 1 exit: *Upp) History --------- Turn | Location | Event 27 | -11/Scrapyard | Identified exit to Materials 27 | -11/Scrapyard | Discovered exit to Materials (range 15) 62 | -11/Scrapyard | Entered Materials 62 | -10/Materials | Evolved 1 slot: Propulsion x1 317 | -10/Materials | Build established: Hacker-Mutant 384 | -10/Materials | Identified exit to Mines 384 | -10/Materials | Discovered exit to Mines (range 5) 473 | -10/Materials | Discovered exit to Mines (range 7) 542 | -10/Materials | Identified exit to Materials 542 | -10/Materials | Discovered exit to Materials (range 15) 749 | -10/Materials | Entered another Materials area 749 | -9/Materials | Evolved 2 slots: Utility x1, Weapon x1 929 | -9/Materials | Identified exit to Mines 929 | -9/Materials | Discovered exit to Mines (range 14) 1141 | -9/Materials | Identified exit to Materials 1141 | -9/Materials | Discovered exit to Materials (range 11) 1278 | -9/Materials | Build established: Hacker-Gunner 1400 | -9/Materials | Discovered exit to Materials (range 16) 1440 | -9/Materials | Entered another Materials area 1440 | -8/Materials | Evolved 2 slots: Utility x2 1626 | -8/Materials | Identified exit to Factory 1626 | -8/Materials | Discovered exit to Factory (range 7) 2080 | -8/Materials | Discovered exit to Factory (range 5) 2120 | -8/Materials | Entered Factory 2120 | -7/Factory | Evolved 2 slots: Power x1, Weapon x1 2243 | -7/Factory | Allied Derelicts emerged from ambush trap array 2273 | -7/Factory | Garrison activated, responded to threat 2706 | -7/Factory | Core integrity fell below 50% 3075 | -7/Factory | Build established: Hacker-Tank 4068 | -7/Factory | Identified exit to Factory 4068 | -7/Factory | Discovered exit to Factory (range 5) 4075 | -7/Factory | Entered another Factory area 4075 | -6/Factory | Evolved 2 slots: Utility x2 4367 | -6/Factory | Build established: Hacker-Gunner 4623 | -6/Factory | Identified exit to Factory 4623 | -6/Factory | Discovered exit to Factory (range 15) 4661 | -6/Factory | Entered another Factory area 4661 | -5/Factory | Evolved 2 slots: Propulsion x1, Utility x1 4757 | -5/Factory | Identified exit to Factory 4757 | -5/Factory | Discovered exit to Factory (range 15) 4839 | -5/Factory | Destroyed 14 combat bots 5123 | -5/Factory | Identified exit to Upper Caves 5123 | -5/Factory | Discovered exit to Upper Caves (range 15) 5259 | -5/Factory | Build established: Hacker-Tank 5405 | -5/Factory | Garrison activated, responded to threat 5965 | -5/Factory | Discovered exit to Factory (range 8) 5972 | -5/Factory | Entered another Factory area 5972 | -4/Factory | Evolved 2 slots: Utility x1, Weapon x1 5995 | -4/Factory | Spotted B-86 Titan 6118 | -4/Factory | Lost 5 parts (1p2n1u1w) 6220 | -4/Factory | Destroyed B-86 Titan 6250 | -4/Factory | Lost 12 parts (1p2n5u4w) 6408 | -4/Factory | Identified exit to Upper Caves 6408 | -4/Factory | Discovered exit to Upper Caves (range 16) 6481 | -4/Factory | Core integrity fell below 50% 6668 | -4/Factory | Self-destructed Last Messages --------------- 06638_ Overheating: Energy bleed (-44). 06639_ Overheating: Energy bleed (-33). 06641_ Slug penetrates Wall. 06642_ Power failure, Hvy. Antimatter Reactor shutdown. 06643_ Power failure, Rnf. Fission Core shutdown. 06644_ Overheating: Rnf. Fission Core damaged (-18). 06645_ Overheating: Imp. Arc Projector damaged (-31). 06646_ Overheating: System interference. 06646_ Imp. Arc Projector temporarily disabled. 06647_ Overheating: Matter decay (-23). 06649_ Power failure, Hvy. Antimatter Reactor shutdown. 06651_ Power failure, Rnf. Fission Core shutdown. 06658_ Rnf. Fission Core destroyed. 06658_ Transmission Jammer destroyed. 06660_ P-70 Sage destroyed. 06663_ Critical hit (Burn: +37). 06663_ G-67 Veteran destroyed. 06666_ Imp. Arc Projector destroyed. 06666_ Imp. Linear Gravjet destroyed. [Achievement: Tester] Map ----- +----------------------------------------------------+ | ???????????????????????????????? | | ???????????????????????????????? | | ???????????????????????????????? | | ???????????????????????????????? | | ???????????????????????????????? | | ???????????????????????????????? | | ???????????????????????????????? | | ????????????? ???????????????? | | ????????????? ??????????????? | | ????????????? ??????????????? | | ????????????? ??????????????? | | ????????????? #??????????????? | | ############# #?#?#####??????? | | ? # #? ???????? | | # """" """" # # ?% ????????? | | # """" """" # # ?????????? | | # """" """" # "%!%|??????????? | | # """" """" # # *???????????? | | # """" """" # " ""???????????? | | # """" """" # ; ?????????????? | | # # #??????????????? | | # gg! # #??????????????? | | # =%[ ; % #??????????????? | | # ] g! / #??????????????? | | # !%! " #??????????????? | | #######@##### ##?????????????? | | ?????## ##?# #?????????????? | | ?????# ### " # #?????????? | | ?????# "T #??????????? | | ????## ### # #??????????? | | ???##;#+####! ####??????????? | | ???# #### ###?????????????? | | ???# #### #???????????????? | | ???# = " # #???????????????? | | ???# = "###?#???????????????? | | ???# ##???????????????????? | | ???#*! #????????????????????? | | ???##"#####????????????????????? | | ????# #????????????????????????? | | ????# ########?????????????????? | | ????# +???????????????? | | ????# ########?????????????????? | | ????# #??????# #???????????????? | | ??###+###### ##????????????? | | ??# # ?????????????? | | ??# # > ?????????????? | | ??# # ??????????????? | | ??# # ??????????????? | | ??# ## #??????????????? | | ??# ## #??????????????? | +----------------------------------------------------+ Best States ------------- Heat Dissipation 81 Energy Generation 39 Energy Capacity 550 Matter Stores 300 Matter Capacity 300 Sight Range 16 Terrain Scan Density 10 Jamming Range 12 Base Temperature (-) 150 EM Shielding 3 Armor Coverage 300 Resistance: KI 35 Resistance: TH 35 Resistance: EX 60 Resistance: EM 35 Resistance: I 35 Resistance: S 35 Resistance: P 35 Point Defense Rating 80 Evasion (%) 55 Targeting Accuracy 11 Recoil Reduction 4 Energy Filtering 30 Particle Charging 15 Offensive Hacking 20 Item Schematics ----------------- None Robot Schematics ------------------ None Fabricated ------------ Nothing Alien Tech Used ----------------- None Achievements -------------- Tester Challenges ------------ None Game ------ Seed StormMicroEdition Manual? 0 Play Time 00:57:41 Cumulative 51.0 hours Start 2022.10.05 @ 00:03:35 End 2022.11.13 @ 22:57:57 Sessions 5 Manual Loads 0 Difficulty Explorer Special Mode None Game No. 74 Rogue 0 Adventurer 0 Explorer 74 Win Type - Total 1 Types 1/0/0/0/0/0/0/0/0 Lore% 40 Gallery% 50 Achievement% 44 Wizard Run 0 Options --------- ASCII 0 Keyboard 0 Movement Mouse Keybinds 0 Fullscreen 2 Font 18/Smallcaps Map View 76x50 Tactical HUD 1 Map Filters NONE Filters NONE Steam 1 RUN: 6c5fc754-baba-47d5-a302-8a84f8bdbfd2